Workbook

Sheet +NZD
AH2: Pair | AI2: BUY | AJ2: SELL
B3: AUDCAD | C3: AUDJPY | D3: AUDNZD | E3: AUDUSD | F3: CADCHF | G3: CADJPY | H3: CHFJPY | I3: EURAUD | J3: EURCAD | K3: EURCHF | L3: EURGBP | M3: EURJPY | N3: GBPCAD | O3: GBPAUD | P3: GBPNZD | Q3: GBPCHF | R3: GBPJPY | S3: GBPUSD | T3: NZDJPY | U3: NZDUSD | V3: USDCAD | W3: USDCHF | X3: USDJPY | Y3: AUDCHF | Z3: EURUSD | AA3: EURNZD | AB3: NZDCAD | AC3: NZDCHF | AH3: AUDCAD | AI3: =HLOOKUP(LEFT(AH3,3),$C$17:$J$18,2,FALSE) -> 4.285714286 | AJ3: =HLOOKUP(RIGHT(AH3,3),$C$17:$J$18,2,FALSE) -> 6.142857143
A4: High | B4: =[1]!AUDCAD -> 1.037 | C4: =[1]!AUDJPY -> 91.76 | D4: =[1]!AUDNZD -> 1.2627 | E4: =[1]!AUDUSD -> 1.0528 | F4: =[1]!CADCHF -> 0.9378 | G4: =[1]!CADJPY -> 88.65 | H4: =[1]!CHFJPY -> 95.18 | I4: =[1]!EURAUD -> 1.2564 | J4: =[1]!EURCAD -> 1.3001 | K4: =[1]!EURCHF -> 1.2106 | L4: =[1]!EURGBP -> 0.8119 | M4: =[1]!EURJPY -> 115.22 | N4: =[1]!GBPCAD -> 1.6023 | O4: =[1]!GBPAUD -> 1.5482 | P4: =[1]!GBPNZD -> 1.9517 | Q4: =[1]!GBPCHF -> 1.4952 | R4: =[1]!GBPJPY -> 141.96 | S4: =[1]!GBPUSD -> 1.6257 | T4: =[1]!NZDJPY -> 72.8 | U4: =[1]!NZDUSD -> 0.8354 | V4: =[1]!USDCAD -> 0.987 | W4: =[1]!USDCHF -> 0.9243 | X4: =[1]!USDJPY -> 87.38 | Y4: =[1]!AUDCHF -> 0.9711 | Z4: =[1]!EURUSD -> 1.3191 | AA4: =[1]!EURNZD -> 1.5834 | AB4: =[1]!NZDCAD -> 0.8222 | AC4: =[1]!NZDCHF -> 0.7699 | AH4: AUDJPY | AI4: =HLOOKUP(LEFT(AH4,3),$C$17:$J$18,2,FALSE) -> 4.285714286 | AJ4: =HLOOKUP(RIGHT(AH4,3),$C$17:$J$18,2,FALSE) -> 7
A5: Ask | B5: =[2]!AUDCAD -> 1.0366 | C5: =[2]!AUDJPY -> 91.4 | D5: =[2]!AUDNZD -> 1.2647 | E5: =[2]!AUDUSD -> 1.0521 | F5: =[2]!CADCHF -> 0.9361 | G5: =[2]!CADJPY -> 88.26 | H5: =[2]!CHFJPY -> 94.29 | I5: =[2]!EURAUD -> 1.2475 | J5: =[2]!EURCAD -> 1.2925 | K5: =[2]!EURCHF -> 1.209 | L5: =[2]!EURGBP -> 0.8113 | M5: =[2]!EURJPY -> 113.97 | N5: =[2]!GBPCAD -> 1.5934 | O5: =[2]!GBPAUD -> 1.5383 | P5: =[2]!GBPNZD -> 1.9436 | Q5: =[2]!GBPCHF -> 1.4908 | R5: =[2]!GBPJPY -> 140.52 | S5: =[2]!GBPUSD -> 1.6171 | T5: =[2]!NZDJPY -> 72.41 | U5: =[2]!NZDUSD -> 0.8328 | V5: =[2]!USDCAD -> 0.9853 | W5: =[2]!USDCHF -> 0.9219 | X5: =[2]!USDJPY -> 86.91 | Y5: =[2]!AUDCHF -> 0.9702 | Z5: =[2]!EURUSD -> 1.3118 | AA5: =[2]!EURNZD -> 1.5763 | AB5: =[2]!NZDCAD -> 0.8209 | AC5: =[2]!NZDCHF -> 0.7685 | AE5: 0 | AF5: 0 | AH5: AUDNZD | AI5: 4.285714286 | AJ5: 2.285714286
A6: Bid | B6: =[3]!AUDCAD -> 1.0357 | C6: =[3]!AUDJPY -> 91.36 | D6: =[3]!AUDNZD -> 1.2618 | E6: =[3]!AUDUSD -> 1.0518 | F6: =[3]!CADCHF -> 0.9354 | G6: =[3]!CADJPY -> 88.17 | H6: =[3]!CHFJPY -> 94.24 | I6: =[3]!EURAUD -> 1.2464 | J6: =[3]!EURCAD -> 1.2916 | K6: =[3]!EURCHF -> 1.2086 | L6: =[3]!EURGBP -> 0.811 | M6: =[3]!EURJPY -> 113.94 | N6: =[3]!GBPCAD -> 1.592 | O6: =[3]!GBPAUD -> 1.5364 | P6: =[3]!GBPNZD -> 1.9402 | Q6: =[3]!GBPCHF -> 1.4901 | R6: =[3]!GBPJPY -> 140.45 | S6: =[3]!GBPUSD -> 1.6168 | T6: =[3]!NZDJPY -> 72.27 | U6: =[3]!NZDUSD -> 0.8325 | V6: =[3]!USDCAD -> 0.985 | W6: =[3]!USDCHF -> 0.9216 | X6: =[3]!USDJPY -> 86.88 | Y6: =[3]!AUDCHF -> 0.9688 | Z6: =[3]!EURUSD -> 1.3115 | AA6: =[3]!EURNZD -> 1.5739 | AB6: =[3]!NZDCAD -> 0.8195 | AC6: =[3]!NZDCHF -> 0.7666 | AE6: 3 | AF6: 1 | AH6: AUDUSD | AI6: 4.285714286 | AJ6: 4.571428571
A7: Low | B7: =[4]!AUDCAD -> 1.0333 | C7: =[4]!AUDJPY -> 91.1 | D7: =[4]!AUDNZD -> 1.2566 | E7: =[4]!AUDUSD -> 1.0474 | F7: =[4]!CADCHF -> 0.9303 | G7: =[4]!CADJPY -> 87.94 | H7: =[4]!CHFJPY -> 93.97 | I7: =[4]!EURAUD -> 1.2438 | J7: =[4]!EURCAD -> 1.2888 | K7: =[4]!EURCHF -> 1.2082 | L7: =[4]!EURGBP -> 0.8085 | M7: =[4]!EURJPY -> 113.64 | N7: =[4]!GBPCAD -> 1.59 | O7: =[4]!GBPAUD -> 1.5343 | P7: =[4]!GBPNZD -> 1.9339 | Q7: =[4]!GBPCHF -> 1.4898 | R7: =[4]!GBPJPY -> 140.15 | S7: =[4]!GBPUSD -> 1.6144 | T7: =[4]!NZDJPY -> 72.17 | U7: =[4]!NZDUSD -> 0.8312 | V7: =[4]!USDCAD -> 0.9841 | W7: =[4]!USDCHF -> 0.9173 | X7: =[4]!USDJPY -> 86.76 | Y7: =[4]!AUDCHF -> 0.9622 | Z7: =[4]!EURUSD -> 1.3081 | AA7: =[4]!EURNZD -> 1.568 | AB7: =[4]!NZDCAD -> 0.8191 | AC7: =[4]!NZDCHF -> 0.7627 | AE7: 10 | AF7: 2 | AH7: CADCHF | AI7: 6.142857143 | AJ7: 5.571428571
AE8: 25 | AF8: 3 | AH8: CADJPY | AI8: 6.142857143 | AJ8: 7
A9: PIP Range | B9: =($B4:$AC4-$B7:$AC7)*100000 -> 370 | C9: =($B4:$AC4-$B7:$AC7)*1000 -> 660 | D9: =($B4:$AC4-$B7:$AC7)*100000 -> 610 | E9: 540 | F9: 750 | G9: =($B4:$AC4-$B7:$AC7)*1000 -> 710 | H9: =($B4:$AC4-$B7:$AC7)*1000 -> 1210 | I9: =($B4:$AC4-$B7:$AC7)*100000 -> 1260 | J9: 1130 | K9: 240 | L9: 340 | M9: =($B4:$AC4-$B7:$AC7)*1000 -> 1580 | N9: 1230 | O9: 1390 | P9: 1780 | Q9: 540 | R9: =($B4:$AC4-$B7:$AC7)*1000 -> 1810 | S9: 1130 | T9: =($B4:$AC4-$B7:$AC7)*1000 -> 630 | U9: 420 | V9: 290 | W9: 700 | X9: =($B4:$AC4-$B7:$AC7)*1000 -> 620 | Y9: 890 | Z9: 1100 | AA9: 1540 | AB9: 310 | AC9: =($B4:$AC4-$B7:$AC7)*100000 -> 720 | AE9: 40 | AF9: 4 | AH9: CHFJPY | AI9: 5.571428571 | AJ9: 7
A10: Bid Ratio | B10: =($B6:$AC6-$B7:$AC7)/$B22:$AC22*100000 -> 0.155338301 | C10: =($B6:$AC6-$B7:$AC7)/$B22:$AC22*1000 -> 0.208 | D10: =($B6:$AC6-$B7:$AC7)/$B22:$AC22*100000 -> 0.2979661293 | E10: 0.3204172876 | F10: 0.4412491532 | G10: =($B6:$AC6-$B7:$AC7)/$B22:$AC22*1000 -> 0.1949344262 | H10: =($B6:$AC6-$B7:$AC7)/$B22:$AC22*1000 -> 0.1938688525 | I10: 0.2430670641 | J10: 0.2643706815 | K10: 0.036924265 | L10: 0.1823973716 | M10: =($B6:$AC6-$B7:$AC7)/$B22:$AC22*1000 -> 0.3302459016 | N10: 0.1982780111 | O10: 0.09530090774 | P10: 0.8069735808 | Q10: 0.03623350495 | R10: =($B6:$AC6-$B7:$AC7)/$B22:$AC22*1000 -> 0.3939344262 | S10: 0.2220837285 | T10: =($B6:$AC6-$B7:$AC7)/$B22:$AC22*1000 -> 0.06270491803 | U10: 0.07432597209 | V10: 0.04532068825 | W10: 0.304227476 | X10: =($B6:$AC6-$B7:$AC7)/$B22:$AC22*1000 -> 0.08055737705 | Y10: 0.5797779434 | Z10: 0.3090909091 | AA10: 0.6311984826 | AB10: 0.02298875491 | AC10: 0.2672194825 | AE10: 50 | AF10: 5 | AH10: EURAUD | AI10: 2.857142857 | AJ10: 4.285714286
AE11: 60 | AF11: 6 | AH11: EURCAD | AI11: 2.857142857 | AJ11: 6.142857143
A12: Relative | B12: =LEFT(B3,3) -> AUD | C12: =LEFT(C3,3) -> AUD | D12: AUD | E12: AUD | F12: =LEFT(F3,3) -> CAD | G12: CAD | H12: CHF | I12: EUR | J12: EUR | K12: EUR | L12: EUR | M12: EUR | N12: GBP | O12: GBP | P12: GBP | Q12: GBP | R12: GBP | S12: GBP | T12: NZD | U12: NZD | V12: USD | W12: USD | X12: USD | Y12: =LEFT(Y3,3) -> AUD | Z12: =LEFT(Z3,3) -> EUR | AA12: =LEFT(AA3,3) -> EUR | AB12: =LEFT(AB3,3) -> NZD | AC12: =LEFT(AC3,3) -> NZD | AE12: 75 | AF12: 7 | AH12: EURCHF | AI12: 2.857142857 | AJ12: 5.571428571
A13: Strength | B13: =LOOKUP(100*B10,$AE5:$AE14,$AF5:$AF14) -> 2 | C13: =LOOKUP(100*C10,$AE5:$AE14,$AF5:$AF14) -> 2 | D13: 3 | E13: 3 | F13: =LOOKUP(100*F10,$AE5:$AE14,$AF5:$AF14) -> 4 | G13: 2 | H13: 2 | I13: 2 | J13: 3 | K13: 1 | L13: 2 | M13: 3 | N13: 2 | O13: 1 | P13: 7 | Q13: 1 | R13: 3 | S13: 2 | T13: 1 | U13: 1 | V13: 1 | W13: 3 | X13: 1 | Y13: =LOOKUP(100*Y10,$AE5:$AE14,$AF5:$AF14) -> 5 | Z13: =LOOKUP(100*Z10,$AE5:$AE14,$AF5:$AF14) -> 3 | AA13: =LOOKUP(100*AA10,$AE5:$AE14,$AF5:$AF14) -> 6 | AB13: =LOOKUP(100*AB10,$AE5:$AE14,$AF5:$AF14) -> 0 | AC13: =LOOKUP(100*AC10,$AE5:$AE14,$AF5:$AF14) -> 3 | AE13: 90 | AF13: 8 | AH13: EURGBP | AI13: 2.857142857 | AJ13: 3.285714286
B14: =RIGHT(B3,3) -> CAD | C14: =RIGHT(C3,3) -> JPY | D14: NZD | E14: USD | F14: =RIGHT(F3,3) -> CHF | G14: JPY | H14: JPY | I14: AUD | J14: CAD | K14: CHF | L14: GBP | M14: JPY | N14: CAD | O14: AUD | P14: NZD | Q14: CHF | R14: JPY | S14: USD | T14: JPY | U14: USD | V14: CAD | W14: CHF | X14: JPY | Y14: =RIGHT(Y3,3) -> CHF | Z14: =RIGHT(Z3,3) -> USD | AA14: =RIGHT(AA3,3) -> NZD | AB14: =RIGHT(AB3,3) -> CAD | AC14: =RIGHT(AC3,3) -> CHF | AE14: 97 | AF14: 9 | AH14: EURJPY | AI14: 2.857142857 | AJ14: 7
B15: =9-B13 -> 7 | C15: =9-C13 -> 7 | D15: 6 | E15: 6 | F15: =9-F13 -> 5 | G15: 7 | H15: 7 | I15: 7 | J15: 6 | K15: 8 | L15: 7 | M15: 6 | N15: 7 | O15: 8 | P15: 2 | Q15: 8 | R15: 6 | S15: 7 | T15: 8 | U15: 8 | V15: 8 | W15: 6 | X15: 8 | Y15: =9-Y13 -> 4 | Z15: =9-Z13 -> 6 | AA15: =9-AA13 -> 3 | AB15: =9-AB13 -> 9 | AC15: =9-AC13 -> 6 | AH15: GBPCAD | AI15: 3.285714286 | AJ15: 6.142857143
AH16: GBPAUD | AI16: 3.285714286 | AJ16: 4.285714286
A17: Total Strength | C17: USD | D17: EUR | E17: GBP | F17: CHF | G17: NZD | H17: AUD | I17: JPY | J17: CAD | L17: Strong | AH17: GBPCAD | AI17: 3.285714286 | AJ17: 6.142857143
C18: =(V13+W13+X13+E15+S15+U15+Z15)/C19 -> 4.571428571 | D18: =(I13+J13+K13+L13+M13+Z13+AA13)/D19 -> 2.857142857 | E18: =(N13+O13+P13+Q13+R13+S13+L15)/E19 -> 3.285714286 | F18: =(F15+H13+K15+Q15+W15+Y15+AC15)/F19 -> 5.571428571 | G18: =(T13+U13+D15+P15+AA15+AB13+AC13)/G19 -> 2.285714286 | H18: =(B13+C13+D13+E13+I15+O15+Y13)/H19 -> 4.285714286 | I18: =(C15+G15+H15+M15+R15+T15+X15)/I19 -> 7 | J18: =(F13+G13+B15+J15+N15+V15+AB15)/J19 -> 6.142857143 | L18: Rising | AH18: GBPCHF | AI18: 3.285714286 | AJ18: 5.571428571
B19: # of evaluation points | C19: =COUNTIF($B$12:$AC$15,"=USD") -> 7 | D19: =COUNTIF($B$12:$AC$15,"=EUR") -> 7 | E19: =COUNTIF($B$12:$AC$15,"=GBP") -> 7 | F19: =COUNTIF($B$12:$AC$15,"=CHF") -> 7 | G19: =COUNTIF($B$12:$AC$15,"=NZD") -> 7 | H19: =COUNTIF($B$12:$AC$15,"=AUD") -> 7 | I19: =COUNTIF($B$12:$AC$15,"=JPY") -> 7 | J19: =COUNTIF($B$12:$AC$15,"=CAD") -> 7 | L19: Neutral | AH19: GBPJPY | AI19: 3.285714286 | AJ19: 7
L20: Weak | Z20: eurusd | AH20: GBPUSD | AI20: 3.285714286 | AJ20: 4.571428571
B21: =B9*C41*F41 -> 35352.02 | C21: =C9*C46*F46 -> 77943.36 | D21: =D9*C52*F52 -> 51598.68 | E21: =E9*C42*F42 -> 58050 | F21: =F9*C39*F39 -> 95790 | G21: =G9*C40*F40 -> 88830.94 | H21: =H9*C35*F35 -> 128255.16 | I21: =I9*C43*F43 -> 173887.56 | J21: =J9*C37*F37 -> 157499.4 | K21: =K9*C31*F31 -> 32704.56 | L21: =L9*C30*F30 -> 36618.68 | M21: =M9*C32*F32 -> 256754.74 | N21: =N9*C38*F38 -> 180009.27 | O21: =O9*C44*F44 -> 93118.88 | P21: =P9*C49*F49 -> 336576.64 | Q21: =Q9*C33*F33 -> 96278.22 | R21: =R9*C34*F34 -> 350854.02 | S21: =S9*C27*F27 -> 154358 | T21: =T9*C51*F51 -> 58315.95 | U21: =U9*C48*F48 -> 35448 | V21: =V9*C36*F36 -> 21557.44 | W21: =(W9*C28*F28) -> 73109.4 | X21: =(X9*C29*F29) -> 61441.38 | Y21: =(Y9*C45*F45) -> 115412.53 | Z21: =(Z9*C26*F26) -> 147620 | AA21: =(AA9*C47*F47) -> 243209.12 | AB21: =(AB9*C53*F53) -> 26300.4 | AC21: =(AC9*C50*F50) -> 72825.12 | AH21: NZDJPY | AI21: 2.285714286 | AJ21: 7
B22: =(Z21/$B21:$AC21)*$B9:$AC9 -> 1545.014967 | C22: =(Z21/$B21:$AC21)*$B9:$AC9 -> 1250 | D22: =(Z21/$B21:$AC21)*$B9:$AC9 -> 1745.164799 | E22: =(Z21/$B21:$AC21)*$B9:$AC9 -> 1373.209302 | F22: =(Z21/$B21:$AC21)*$B9:$AC9 -> 1155.809583 | G22: =(Z21/$B21:$AC21)*$B9:$AC9 -> 1179.883946 | H22: =(Z21/$B21:$AC21)*$B9:$AC9 -> 1392.694064 | I22: =(Z21/$B21:$AC21)*$B9:$AC9 -> 1069.663638 | J22: =(Z21/$B21:$AC21)*$B9:$AC9 -> 1059.118955 | K22: =(Z21/$B21:$AC21)*$B9:$AC9 -> 1083.298476 | L22: =(Z21/$B21:$AC21)*$B9:$AC9 -> 1370.633786 | M22: =(Z21/$B21:$AC21)*$B9:$AC9 -> 908.4139985 | N22: =(Z21/$B21:$AC21)*$B9:$AC9 -> 1008.684719 | O22: =(Z21/$B21:$AC21)*$B9:$AC9 -> 2203.546692 | P22: =(Z21/$B21:$AC21)*$B9:$AC9 -> 780.694703 | Q22: =(Z21/$B21:$AC21)*$B9:$AC9 -> 827.9629598 | R22: =(Z21/$B21:$AC21)*$B9:$AC9 -> 761.5480649 | S22: =(Z21/$B21:$AC21)*$B9:$AC9 -> 1080.673499 | T22: =(Z21/$B21:$AC21)*$B9:$AC9 -> 1594.771242 | U22: =(Z21/$B21:$AC21)*$B9:$AC9 -> 1749.052133 | V22: =(Z21/$B21:$AC21)*$B9:$AC9 -> 1985.848041 | W22: =(Z21/$B21:$AC21)*$B9:$AC9 -> 1413.416059 | X22: =(Z21/$B21:$AC21)*$B9:$AC9 -> 1489.62149 | Y22: =(Z21/$B21:$AC21)*$B9:$AC9 -> 1138.366865 | Z22: =(Z21/$B21:$AC21)*$B9:$AC9 -> 1100 | AA22: =(Z21/$B21:$AC21)*$B9:$AC9 -> 934.7297503 | AB22: =(Z21/$B21:$AC21)*$B9:$AC9 -> 1739.981141 | AC22: =(Z21/$B21:$AC21)*$B9:$AC9 -> 1459.474423
AH24: NZDUSD | AI24: 2.285714286 | AJ24: 4.571428571
C25: pips | D25: $ | E25: % | F25: pip value | AH25: USDCAD | AI25: 4.571428571 | AJ25: 6.142857143
B26: EURUSD | C26: 134.2 | D26: 1,342.0 | E26: 0.95 | F26: 1 | AH26: USDCHF | AI26: 4.571428571 | AJ26: 5.571428571
B27: GBPUSD | C27: 136.6 | D27: 1,366.2 | E27: 0.84 | F27: 1 | AH27: USDJPY | AI27: 4.571428571 | AJ27: 7
B28: USDCHF | C28: 101.4 | D28: 1,125.8 | E28: 1.12 | F28: 1.03
B29: USDJPY | C29: 81.9 | D29: 1,016.3 | E29: 1.01 | F29: 1.21
B30: EURGBP | C30: 68.6 | D30: 1,113.5 | E30: 0.79 | F30: 1.57
B31: EURCHF | C31: 132.3 | D31: 1,469.1 | E31: 1.03 | F31: 1.03
B32: EURJPY | C32: 134.3 | D32: 1,666.7 | E32: 1.17 | F32: 1.21
B33: GBPCHF | C33: 173.1 | D33: 1,921.8 | E33: 1.18 | F33: 1.03
B34: GBPJPY | C34: 160.2 | D34: 1,987.3 | E34: 1.21 | F34: 1.21
B35: CHFJPY | C35: 87.6 | D35: 1,087.0 | E35: 0.98 | F35: 1.21
B36: USDCAD | C36: 73.6 | D36: 748 | E36: 0.75 | F36: 1.01
B37: EURCAD | C37: 138 | D37: 1,402.6 | E37: 1 | F37: 1.01
B38: GBPCAD | C38: 144.9 | D38: 1,472.3 | E38: 0.91 | F38: 1.01
B39: CADCHF | C39: 124 | D39: 1,376.3 | E39: 1.34 | F39: 1.03
B40: CADJPY | C40: 103.4 | D40: 1,282.5 | E40: 1.25 | F40: 1.21
B41: AUDCAD | C41: 94.6 | D41: 961.9 | E41: 0.96 | F41: 1.01
B42: AUDUSD | C42: 107.5 | D42: 1,074.8 | E42: 1.07 | F42: 1
B43: EURAUD | C43: 139.4 | D43: 1,388.0 | E43: 0.99 | F43: 0.99
B44: AUDGBP | C44: 63.2 | D44: 1,025.9 | E44: 1.02 | F44: 1.06
B45: AUDCHF | C45: 125.9 | D45: 1,398.0 | E45: 1.38 | F45: 1.03
B46: AUDJPY | C46: 97.6 | D46: 1,211.3 | E46: 1.2 | F46: 1.21
B47: EURNZD | C47: 207.8 | D47: 1,517.4 | E47: 1.08 | F47: 0.76
B48: NZDUSD | C48: 84.4 | D48: 844.2 | E48: 1.15 | F48: 1
B49: GBPNZD | C49: 248.8 | D49: 1,816.6 | E49: 1.13 | F49: 0.76
B50: NZDCHF | C50: 98.2 | D50: 1,090.5 | E50: 1.48 | F50: 1.03
B51: NZDJPY | C51: 76.5 | D51: 949.2 | E51: 1.28 | F51: 1.21
B52: AUDNZD | C52: 111.3 | D52: 812.5 | E52: 0.81 | F52: 0.76
B53: NZDCAD | C53: 84 | D53: 853.5 | E53: 1.17 | F53: 1.01

Sheet List1 (hidden)

Sheet 28 párový prehľad
C4: AUDCAD | D4: AUDJPY | E4: AUDNZD | F4: AUDUSD | G4: CADCHF | H4: CADJPY | I4: CHFJPY | J4: EURAUD | K4: EURCAD | L4: EURCHF | M4: EURGBP | N4: EURJPY | O4: GBPCAD | P4: GBPAUD | Q4: GBPNZD | R4: GBPCHF | S4: GBPJPY | T4: GBPUSD | U4: NZDJPY | V4: NZDUSD | W4: USDCAD | X4: USDCHF | Y4: USDJPY | Z4: AUDCHF | AA4: EURUSD | AB4: EURNZD | AC4: NZDCAD | AD4: NZDCHF
B5: High | C5: =[1]!AUDCAD -> 1.037 | D5: =[1]!AUDJPY -> 91.76 | E5: =[1]!AUDNZD -> 1.2627 | F5: =[1]!AUDUSD -> 1.0528 | G5: =[1]!CADCHF -> 0.9378 | H5: =[1]!CADJPY -> 88.65 | I5: =[1]!CHFJPY -> 95.18 | J5: =[1]!EURAUD -> 1.2564 | K5: =[1]!EURCAD -> 1.3001 | L5: =[1]!EURCHF -> 1.2106 | M5: =[1]!EURGBP -> 0.8119 | N5: =[1]!EURJPY -> 115.22 | O5: =[1]!GBPCAD -> 1.6023 | P5: =[1]!GBPAUD -> 1.5482 | Q5: =[1]!GBPNZD -> 1.9517 | R5: =[1]!GBPCHF -> 1.4952 | S5: =[1]!GBPJPY -> 141.96 | T5: =[1]!GBPUSD -> 1.6257 | U5: =[1]!NZDJPY -> 72.8 | V5: =[1]!NZDUSD -> 0.8354 | W5: =[1]!USDCAD -> 0.987 | X5: =[1]!USDCHF -> 0.9243 | Y5: =[1]!USDJPY -> 87.38 | Z5: =[1]!AUDCHF -> 0.9711 | AA5: =[1]!EURUSD -> 1.3191 | AB5: =[1]!EURNZD -> 1.5834 | AC5: =[1]!NZDCAD -> 0.8222 | AD5: =[1]!NZDCHF -> 0.7699
B6: Ask | C6: =[2]!AUDCAD -> 1.0366 | D6: =[2]!AUDJPY -> 91.4 | E6: =[2]!AUDNZD -> 1.2647 | F6: =[2]!AUDUSD -> 1.0521 | G6: =[2]!CADCHF -> 0.9361 | H6: =[2]!CADJPY -> 88.26 | I6: =[2]!CHFJPY -> 94.29 | J6: =[2]!EURAUD -> 1.2475 | K6: =[2]!EURCAD -> 1.2925 | L6: =[2]!EURCHF -> 1.209 | M6: =[2]!EURGBP -> 0.8113 | N6: =[2]!EURJPY -> 113.97 | O6: =[2]!GBPCAD -> 1.5934 | P6: =[2]!GBPAUD -> 1.5383 | Q6: =[2]!GBPNZD -> 1.9436 | R6: =[2]!GBPCHF -> 1.4908 | S6: =[2]!GBPJPY -> 140.52 | T6: =[2]!GBPUSD -> 1.6171 | U6: =[2]!NZDJPY -> 72.41 | V6: =[2]!NZDUSD -> 0.8328 | W6: =[2]!USDCAD -> 0.9853 | X6: =[2]!USDCHF -> 0.9219 | Y6: =[2]!USDJPY -> 86.91 | Z6: =[2]!AUDCHF -> 0.9702 | AA6: =[2]!EURUSD -> 1.3118 | AB6: =[2]!EURNZD -> 1.5763 | AC6: =[2]!NZDCAD -> 0.8209 | AD6: =[2]!NZDCHF -> 0.7685
B7: Bid | C7: =[3]!AUDCAD -> 1.0357 | D7: =[3]!AUDJPY -> 91.36 | E7: =[3]!AUDNZD -> 1.2618 | F7: =[3]!AUDUSD -> 1.0518 | G7: =[3]!CADCHF -> 0.9354 | H7: =[3]!CADJPY -> 88.17 | I7: =[3]!CHFJPY -> 94.24 | J7: =[3]!EURAUD -> 1.2464 | K7: =[3]!EURCAD -> 1.2916 | L7: =[3]!EURCHF -> 1.2086 | M7: =[3]!EURGBP -> 0.811 | N7: =[3]!EURJPY -> 113.94 | O7: =[3]!GBPCAD -> 1.592 | P7: =[3]!GBPAUD -> 1.5364 | Q7: =[3]!GBPNZD -> 1.9402 | R7: =[3]!GBPCHF -> 1.4901 | S7: =[3]!GBPJPY -> 140.45 | T7: =[3]!GBPUSD -> 1.6168 | U7: =[3]!NZDJPY -> 72.27 | V7: =[3]!NZDUSD -> 0.8325 | W7: =[3]!USDCAD -> 0.985 | X7: =[3]!USDCHF -> 0.9216 | Y7: =[3]!USDJPY -> 86.88 | Z7: =[3]!AUDCHF -> 0.9688 | AA7: =[3]!EURUSD -> 1.3115 | AB7: =[3]!EURNZD -> 1.5739 | AC7: =[3]!NZDCAD -> 0.8195 | AD7: =[3]!NZDCHF -> 0.7666
B8: Low | C8: =[4]!AUDCAD -> 1.0333 | D8: =[4]!AUDJPY -> 91.1 | E8: =[4]!AUDNZD -> 1.2566 | F8: =[4]!AUDUSD -> 1.0474 | G8: =[4]!CADCHF -> 0.9303 | H8: =[4]!CADJPY -> 87.94 | I8: =[4]!CHFJPY -> 93.97 | J8: =[4]!EURAUD -> 1.2438 | K8: =[4]!EURCAD -> 1.2888 | L8: =[4]!EURCHF -> 1.2082 | M8: =[4]!EURGBP -> 0.8085 | N8: =[4]!EURJPY -> 113.64 | O8: =[4]!GBPCAD -> 1.59 | P8: =[4]!GBPAUD -> 1.5343 | Q8: =[4]!GBPNZD -> 1.9339 | R8: =[4]!GBPCHF -> 1.4898 | S8: =[4]!GBPJPY -> 140.15 | T8: =[4]!GBPUSD -> 1.6144 | U8: =[4]!NZDJPY -> 72.17 | V8: =[4]!NZDUSD -> 0.8312 | W8: =[4]!USDCAD -> 0.9841 | X8: =[4]!USDCHF -> 0.9173 | Y8: =[4]!USDJPY -> 86.76 | Z8: =[4]!AUDCHF -> 0.9622 | AA8: =[4]!EURUSD -> 1.3081 | AB8: =[4]!EURNZD -> 1.568 | AC8: =[4]!NZDCAD -> 0.8191 | AD8: =[4]!NZDCHF -> 0.7627
A10: 12w | B10: Volatilita | C10: 69.7 | D10: 85.5 | E10: 71.5 | F10: 108.8 | G10: 76.8 | H10: 69 | I10: 88 | J10: 104.8 | K10: 98.7 | L10: 40.7 | M10: 58.7 | N10: 105.5 | O10: 114 | P10: 132.8 | Q10: 181.3 | R10: 111.9 | S10: 104.3 | T10: 116.4 | U10: 68 | V10: 86.1 | W10: 76.6 | X10: 93.3 | Y10: 45.9 | Z10: 85.7 | AA10: 127 | AB10: 152.2 | AC10: 61.5 | AD10: 71.4
B11: Dnes | C11: =(C5-C8)*10000 -> 37 | D11: =(D5-D8)*100 -> 66 | E11: =(E5-E8)*10000 -> 61 | F11: 54 | G11: 75 | H11: =(H5-H8)*100 -> 71 | I11: =(I5-I8)*100 -> 121 | J11: 126 | K11: 113 | L11: 24 | M11: 34 | N11: =(N5-N8)*100 -> 158 | O11: 123 | P11: 139 | Q11: 178 | R11: 54 | S11: =(S5-S8)*100 -> 181 | T11: 113 | U11: =(U5-U8)*100 -> 63 | V11: 42 | W11: 29 | X11: 70 | Y11: =(Y5-Y8)*100 -> 62 | Z11: 89 | AA11: 110 | AB11: 154 | AC11: 31 | AD11: 72
C12: =1/(C10/C11) -> 0.5308464849 | D12: =1/(D10/D11) -> 0.7719298246 | E12: 0.8531468531 | F12: 0.4963235294 | G12: 0.9765625 | H12: 1.028985507 | I12: 1.375 | J12: 1.202290076 | K12: 1.144883485 | L12: 0.5896805897 | M12: 0.5792163543 | N12: 1.497630332 | O12: 1.078947368 | P12: 1.046686747 | Q12: 0.9817981247 | R12: 0.4825737265 | S12: 1.735378715 | T12: 0.970790378 | U12: 0.9264705882 | V12: 0.487804878 | W12: 0.3785900783 | X12: 0.7502679528 | Y12: 1.350762527 | Z12: 1.038506418 | AA12: 0.8661417323 | AB12: 1.011826544 | AC12: 0.5040650407 | AD12: 1.008403361
C16: Priemer: | D16: =SUM(C12:AD12)/28 -> 0.916625347 | F16: MIN: | G16: =MIN(C12:AD12) -> 0.3785900783 | I16: MAX: | J16: =MAX(C12:AD12) -> 1.735378715
B22: AUD | D22: AUDCAD | E22: AUDJPY | F22: AUDNZD | G22: AUDUSD | H22: EURAUD | I22: GBPAUD | J22: AUDCHF | M22: CAD | O22: AUDCAD | P22: CADCHF | Q22: CADJPY | R22: EURCAD | S22: GBPCAD | T22: USDCAD | U22: NZDCAD
C23: High | D23: =[1]!AUDCAD -> 1.037 | E23: =[1]!AUDJPY -> 91.76 | F23: =[1]!AUDNZD -> 1.2627 | G23: =[1]!AUDUSD -> 1.0528 | H23: =[1]!EURAUD -> 1.2564 | I23: =[1]!GBPAUD -> 1.5482 | J23: =[1]!AUDCHF -> 0.9711 | N23: High | O23: =[1]!AUDCAD -> 1.037 | P23: =[1]!CADCHF -> 0.9378 | Q23: =[1]!CADJPY -> 88.65 | R23: =[1]!EURCAD -> 1.3001 | S23: =[1]!GBPCAD -> 1.6023 | T23: =[1]!USDCAD -> 0.987 | U23: =[1]!NZDCAD -> 0.8222
A24: Priemer | B24: =SUM(D30:J30)/7 -> 0.8485328476 | C24: Ask | D24: =[2]!AUDCAD -> 1.0366 | E24: =[2]!AUDJPY -> 91.4 | F24: =[2]!AUDNZD -> 1.2647 | G24: =[2]!AUDUSD -> 1.0521 | H24: =[2]!EURAUD -> 1.2475 | I24: =[2]!GBPAUD -> 1.5383 | J24: =[2]!AUDCHF -> 0.9702 | L24: Priemer | M24: =SUM(O30:U30)/7 -> 0.8061257807 | N24: Ask | O24: =[2]!AUDCAD -> 1.0366 | P24: =[2]!CADCHF -> 0.9361 | Q24: =[2]!CADJPY -> 88.26 | R24: =[2]!EURCAD -> 1.2925 | S24: =[2]!GBPCAD -> 1.5934 | T24: =[2]!USDCAD -> 0.9853 | U24: =[2]!NZDCAD -> 0.8209
C25: Bid | D25: =[3]!AUDCAD -> 1.0357 | E25: =[3]!AUDJPY -> 91.36 | F25: =[3]!AUDNZD -> 1.2618 | G25: =[3]!AUDUSD -> 1.0518 | H25: =[3]!EURAUD -> 1.2464 | I25: =[3]!GBPAUD -> 1.5364 | J25: =[3]!AUDCHF -> 0.9688 | N25: Bid | O25: =[3]!AUDCAD -> 1.0357 | P25: =[3]!CADCHF -> 0.9354 | Q25: =[3]!CADJPY -> 88.17 | R25: =[3]!EURCAD -> 1.2916 | S25: =[3]!GBPCAD -> 1.592 | T25: =[3]!USDCAD -> 0.985 | U25: =[3]!NZDCAD -> 0.8195
A26: Min | B26: =MIN(D30:J30) -> 0.4963235294 | C26: Low | D26: =[4]!AUDCAD -> 1.0333 | E26: =[4]!AUDJPY -> 91.1 | F26: =[4]!AUDNZD -> 1.2566 | G26: =[4]!AUDUSD -> 1.0474 | H26: =[4]!EURAUD -> 1.2438 | I26: =[4]!GBPAUD -> 1.5343 | J26: =[4]!AUDCHF -> 0.9622 | L26: Min | M26: =MIN(O30:U30) -> 0.3785900783 | N26: Low | O26: =[4]!AUDCAD -> 1.0333 | P26: =[4]!CADCHF -> 0.9303 | Q26: =[4]!CADJPY -> 87.94 | R26: =[4]!EURCAD -> 1.2888 | S26: =[4]!GBPCAD -> 1.59 | T26: =[4]!USDCAD -> 0.9841 | U26: =[4]!NZDCAD -> 0.8191
A28: Max | B28: =MAX(D30:J30) -> 1.202290076 | C28: Volatilita | D28: 69.7 | E28: 85.5 | F28: 71.5 | G28: 108.8 | H28: 104.8 | I28: 132.8 | J28: 85.7 | L28: Max | M28: =MAX(O30:U30) -> 1.144883485 | N28: Volatilita | O28: 69.7 | P28: 76.8 | Q28: 69 | R28: 98.7 | S28: 114 | T28: 76.6 | U28: 61.5
C29: Dnes | D29: =(D23-D26)*10000 -> 37 | E29: =(E23-E26)*100 -> 66 | F29: =(F23-F26)*10000 -> 61 | G29: =(G23-G26)*10000 -> 54 | H29: =(H23-H26)*10000 -> 126 | I29: =(I23-I26)*10000 -> 139 | J29: =(J23-J26)*10000 -> 89 | N29: Dnes | O29: =(O23-O26)*10000 -> 37 | P29: =(P23-P26)*10000 -> 75 | Q29: =(Q23-Q26)*100 -> 71 | R29: =(R23-R26)*10000 -> 113 | S29: =(S23-S26)*10000 -> 123 | T29: =(T23-T26)*10000 -> 29 | U29: =(U23-U26)*10000 -> 31
D30: =1/(D28/D29) -> 0.5308464849 | E30: =1/(E28/E29) -> 0.7719298246 | F30: 0.8531468531 | G30: 0.4963235294 | H30: 1.202290076 | I30: 1.046686747 | J30: 1.038506418 | O30: =1/(O28/O29) -> 0.5308464849 | P30: =1/(P28/P29) -> 0.9765625 | Q30: 1.028985507 | R30: 1.144883485 | S30: 1.078947368 | T30: 0.3785900783 | U30: 0.5040650407
B34: EUR | D34: EURAUD | E34: EURCAD | F34: EURCHF | G34: EURGBP | H34: EURJPY | I34: EURUSD | J34: EURNZD | M34: GBP | O34: EURGBP | P34: GBPCAD | Q34: GBPAUD | R34: GBPNZD | S34: GBPCHF | T34: GBPJPY | U34: GBPUSD
C35: High | D35: =[1]!EURAUD -> 1.2564 | E35: =[1]!EURCAD -> 1.3001 | F35: =[1]!EURCHF -> 1.2106 | G35: =[1]!EURGBP -> 0.8119 | H35: =[1]!EURJPY -> 115.22 | I35: =[1]!EURUSD -> 1.3191 | J35: =[1]!EURNZD -> 1.5834 | N35: High | O35: =[1]!EURGBP -> 0.8119 | P35: =[1]!GBPCAD -> 1.6023 | Q35: =[1]!GBPAUD -> 1.5482 | R35: =[1]!GBPNZD -> 1.9517 | S35: =[1]!GBPCHF -> 1.4952 | T35: =[1]!GBPJPY -> 141.96 | U35: =[1]!GBPUSD -> 1.6257
A36: Priemer | B36: =SUM(D42:J42)/7 -> 0.9845241591 | C36: Ask | D36: =[2]!EURAUD -> 1.2475 | E36: =[2]!EURCAD -> 1.2925 | F36: =[2]!EURCHF -> 1.209 | G36: =[2]!EURGBP -> 0.8113 | H36: =[2]!EURJPY -> 113.97 | I36: =[2]!EURUSD -> 1.3118 | J36: =[2]!EURNZD -> 1.5763 | L36: Priemer | M36: =SUM(O42:U42)/7 -> 0.9821987735 | N36: Ask | O36: =[2]!EURGBP -> 0.8113 | P36: =[2]!GBPCAD -> 1.5934 | Q36: =[2]!GBPAUD -> 1.5383 | R36: =[2]!GBPNZD -> 1.9436 | S36: =[2]!GBPCHF -> 1.4908 | T36: =[2]!GBPJPY -> 140.52 | U36: =[2]!GBPUSD -> 1.6171
C37: Bid | D37: =[3]!EURAUD -> 1.2464 | E37: =[3]!EURCAD -> 1.2916 | F37: =[3]!EURCHF -> 1.2086 | G37: =[3]!EURGBP -> 0.811 | H37: =[3]!EURJPY -> 113.94 | I37: =[3]!EURUSD -> 1.3115 | J37: =[3]!EURNZD -> 1.5739 | N37: Bid | O37: =[3]!EURGBP -> 0.811 | P37: =[3]!GBPCAD -> 1.592 | Q37: =[3]!GBPAUD -> 1.5364 | R37: =[3]!GBPNZD -> 1.9402 | S37: =[3]!GBPCHF -> 1.4901 | T37: =[3]!GBPJPY -> 140.45 | U37: =[3]!GBPUSD -> 1.6168
A38: Min | B38: =MIN(D42:J42) -> 0.5792163543 | C38: Low | D38: =[4]!EURAUD -> 1.2438 | E38: =[4]!EURCAD -> 1.2888 | F38: =[4]!EURCHF -> 1.2082 | G38: =[4]!EURGBP -> 0.8085 | H38: =[4]!EURJPY -> 113.64 | I38: =[4]!EURUSD -> 1.3081 | J38: =[4]!EURNZD -> 1.568 | L38: Min | M38: =MIN(O42:U42) -> 0.4825737265 | N38: Low | O38: =[4]!EURGBP -> 0.8085 | P38: =[4]!GBPCAD -> 1.59 | Q38: =[4]!GBPAUD -> 1.5343 | R38: =[4]!GBPNZD -> 1.9339 | S38: =[4]!GBPCHF -> 1.4898 | T38: =[4]!GBPJPY -> 140.15 | U38: =[4]!GBPUSD -> 1.6144
A40: Max | B40: =MAX(D42:J42) -> 1.497630332 | C40: Volatilita | D40: 104.8 | E40: 98.7 | F40: 40.7 | G40: 58.7 | H40: 105.5 | I40: 127 | J40: 152.2 | L40: Max | M40: =MAX(O42:U42) -> 1.735378715 | N40: Volatilita | O40: 58.7 | P40: 114 | Q40: 132.8 | R40: 181.3 | S40: 111.9 | T40: 104.3 | U40: 116.4
C41: Dnes | D41: =(D35-D38)*10000 -> 126 | E41: =(E35-E38)*10000 -> 113 | F41: =(F35-F38)*10000 -> 24 | G41: =(G35-G38)*10000 -> 34 | H41: =(H35-H38)*100 -> 158 | I41: =(I35-I38)*10000 -> 110 | J41: =(J35-J38)*10000 -> 154 | N41: Dnes | O41: =(O35-O38)*10000 -> 34 | P41: =(P35-P38)*10000 -> 123 | Q41: =(Q35-Q38)*10000 -> 139 | R41: =(R35-R38)*10000 -> 178 | S41: =(S35-S38)*10000 -> 54 | T41: =(T35-T38)*100 -> 181 | U41: =(U35-U38)*10000 -> 113
D42: =1/(D40/D41) -> 1.202290076 | E42: 1.144883485 | F42: 0.5896805897 | G42: 0.5792163543 | H42: 1.497630332 | I42: 0.8661417323 | J42: 1.011826544 | O42: =1/(O40/O41) -> 0.5792163543 | P42: 1.078947368 | Q42: 1.046686747 | R42: 0.9817981247 | S42: 0.4825737265 | T42: 1.735378715 | U42: 0.970790378
B46: CHF | D46: CADCHF | E46: CHFJPY | F46: EURCHF | G46: GBPCHF | H46: USDCHF | I46: AUDCHF | J46: NZDCHF | M46: JPY | O46: AUDJPY | P46: CADJPY | Q46: CHFJPY | R46: EURJPY | S46: GBPJPY | T46: NZDJPY | U46: USDJPY
C47: High | D47: =[1]!CADCHF -> 0.9378 | E47: =[1]!CHFJPY -> 95.18 | F47: =[1]!EURCHF -> 1.2106 | G47: =[1]!GBPCHF -> 1.4952 | H47: =[1]!USDCHF -> 0.9243 | I47: =[1]!AUDCHF -> 0.9711 | J47: =[1]!NZDCHF -> 0.7699 | N47: High | O47: =[1]!AUDJPY -> 91.76 | P47: =[1]!CADJPY -> 88.65 | Q47: =[1]!CHFJPY -> 95.18 | R47: =[1]!EURJPY -> 115.22 | S47: =[1]!GBPJPY -> 141.96 | T47: =[1]!NZDJPY -> 72.8 | U47: =[1]!USDJPY -> 87.38
A48: Priemer | B48: =SUM(D54:J54)/7 -> 0.8887135069 | C48: Ask | D48: =[2]!CADCHF -> 0.9361 | E48: =[2]!CHFJPY -> 94.29 | F48: =[2]!EURCHF -> 1.209 | G48: =[2]!GBPCHF -> 1.4908 | H48: =[2]!USDCHF -> 0.9219 | I48: =[2]!AUDCHF -> 0.9702 | J48: =[2]!NZDCHF -> 0.7685 | L48: Priemer | M48: =SUM(O54:U54)/7 -> 1.240879642 | N48: Ask | O48: =[2]!AUDJPY -> 91.4 | P48: =[2]!CADJPY -> 88.26 | Q48: =[2]!CHFJPY -> 94.29 | R48: =[2]!EURJPY -> 113.97 | S48: =[2]!GBPJPY -> 140.52 | T48: =[2]!NZDJPY -> 72.41 | U48: =[2]!USDJPY -> 86.91
C49: Bid | D49: =[3]!CADCHF -> 0.9354 | E49: =[3]!CHFJPY -> 94.24 | F49: =[3]!EURCHF -> 1.2086 | G49: =[3]!GBPCHF -> 1.4901 | H49: =[3]!USDCHF -> 0.9216 | I49: =[3]!AUDCHF -> 0.9688 | J49: =[3]!NZDCHF -> 0.7666 | N49: Bid | O49: =[3]!AUDJPY -> 91.36 | P49: =[3]!CADJPY -> 88.17 | Q49: =[3]!CHFJPY -> 94.24 | R49: =[3]!EURJPY -> 113.94 | S49: =[3]!GBPJPY -> 140.45 | T49: =[3]!NZDJPY -> 72.27 | U49: =[3]!USDJPY -> 86.88
A50: Min | B50: =MIN(D54:J54) -> 0.4825737265 | C50: Low | D50: =[4]!CADCHF -> 0.9303 | E50: =[4]!CHFJPY -> 93.97 | F50: =[4]!EURCHF -> 1.2082 | G50: =[4]!GBPCHF -> 1.4898 | H50: =[4]!USDCHF -> 0.9173 | I50: =[4]!AUDCHF -> 0.9622 | J50: =[4]!NZDCHF -> 0.7627 | L50: Min | M50: =MIN(O54:U54) -> 0.7719298246 | N50: Low | O50: =[4]!AUDJPY -> 91.1 | P50: =[4]!CADJPY -> 87.94 | Q50: =[4]!CHFJPY -> 93.97 | R50: =[4]!EURJPY -> 113.64 | S50: =[4]!GBPJPY -> 140.15 | T50: =[4]!NZDJPY -> 72.17 | U50: =[4]!USDJPY -> 86.76
A52: Max | B52: =MAX(D54:J54) -> 1.375 | C52: Volatilita | D52: 76.8 | E52: 88 | F52: 40.7 | G52: 111.9 | H52: 93.3 | I52: 85.7 | J52: 71.4 | L52: Max | M52: =MAX(O54:U54) -> 1.735378715 | N52: Volatilita | O52: 85.5 | P52: 69 | Q52: 88 | R52: 105.5 | S52: 104.3 | T52: 68 | U52: 45.9
C53: Dnes | D53: =(D47-D50)*10000 -> 75 | E53: =(E47-E50)*100 -> 121 | F53: =(F47-F50)*10000 -> 24 | G53: =(G47-G50)*10000 -> 54 | H53: =(H47-H50)*10000 -> 70 | I53: =(I47-I50)*10000 -> 89 | J53: =(J47-J50)*10000 -> 72 | N53: Dnes | O53: =(O47-O50)*100 -> 66 | P53: 71 | Q53: 121 | R53: 158 | S53: 181 | T53: 63 | U53: 62
D54: =1/(D52/D53) -> 0.9765625 | E54: 1.375 | F54: 0.5896805897 | G54: 0.4825737265 | H54: 0.7502679528 | I54: 1.038506418 | J54: 1.008403361 | O54: =1/(O52/O53) -> 0.7719298246 | P54: 1.028985507 | Q54: 1.375 | R54: 1.497630332 | S54: 1.735378715 | T54: 0.9264705882 | U54: 1.350762527
B58: NZD | D58: GBPNZD | E58: NZDJPY | F58: NZDUSD | G58: EURNZD | H58: NZDCAD | I58: NZDCHF | J58: AUDNZD | M58: USD | O58: AUDUSD | P58: GBPUSD | Q58: NZDUSD | R58: USDCAD | S58: USDCHF | T58: USDJPY | U58: EURUSD
C59: High | D59: =[1]!GBPNZD -> 1.9517 | E59: =[1]!NZDJPY -> 72.8 | F59: =[1]!NZDUSD -> 0.8354 | G59: =[1]!EURNZD -> 1.5834 | H59: =[1]!NZDCAD -> 0.8222 | I59: =[1]!NZDCHF -> 0.7699 | J59: =[1]!AUDNZD -> 1.2627 | N59: High | O59: =[1]!AUDUSD -> 1.0528 | P59: =[1]!GBPUSD -> 1.6257 | Q59: =[1]!NZDUSD -> 0.8354 | R59: =[1]!USDCAD -> 0.987 | S59: =[1]!USDCHF -> 0.9243 | T59: =[1]!USDJPY -> 87.38 | U59: =[1]!EURUSD -> 1.3191
A60: Priemer | B60: =SUM(D66:J66)/7 -> 0.8247879129 | C60: Ask | D60: =[2]!GBPNZD -> 1.9436 | E60: =[2]!NZDJPY -> 72.41 | F60: =[2]!NZDUSD -> 0.8328 | G60: =[2]!EURNZD -> 1.5763 | H60: =[2]!NZDCAD -> 0.8209 | I60: =[2]!NZDCHF -> 0.7685 | J60: =[2]!AUDNZD -> 1.2647 | L60: Priemer | M60: =SUM(O66:U66)/7 -> 0.7572401537 | N60: Ask | O60: =[2]!AUDUSD -> 1.0521 | P60: =[2]!GBPUSD -> 1.6171 | Q60: =[2]!NZDUSD -> 0.8328 | R60: =[2]!USDCAD -> 0.9853 | S60: =[2]!USDCHF -> 0.9219 | T60: =[2]!USDJPY -> 86.91 | U60: =[2]!EURUSD -> 1.3118
C61: Bid | D61: =[3]!GBPNZD -> 1.9402 | E61: =[3]!NZDJPY -> 72.27 | F61: =[3]!NZDUSD -> 0.8325 | G61: =[3]!EURNZD -> 1.5739 | H61: =[3]!NZDCAD -> 0.8195 | I61: =[3]!NZDCHF -> 0.7666 | J61: =[3]!AUDNZD -> 1.2618 | N61: Bid | O61: =[3]!AUDUSD -> 1.0518 | P61: =[3]!GBPUSD -> 1.6168 | Q61: =[3]!NZDUSD -> 0.8325 | R61: =[3]!USDCAD -> 0.985 | S61: =[3]!USDCHF -> 0.9216 | T61: =[3]!USDJPY -> 86.88 | U61: =[3]!EURUSD -> 1.3115
A62: Min | B62: =MIN(D66:J66) -> 0.487804878 | C62: Low | D62: =[4]!GBPNZD -> 1.9339 | E62: =[4]!NZDJPY -> 72.17 | F62: =[4]!NZDUSD -> 0.8312 | G62: =[4]!EURNZD -> 1.568 | H62: =[4]!NZDCAD -> 0.8191 | I62: =[4]!NZDCHF -> 0.7627 | J62: =[4]!AUDNZD -> 1.2566 | L62: Min | M62: =MIN(O66:U66) -> 0.3785900783 | N62: Low | O62: =[4]!AUDUSD -> 1.0474 | P62: =[4]!GBPUSD -> 1.6144 | Q62: =[4]!NZDUSD -> 0.8312 | R62: =[4]!USDCAD -> 0.9841 | S62: =[4]!USDCHF -> 0.9173 | T62: =[4]!USDJPY -> 86.76 | U62: =[4]!EURUSD -> 1.3081
A64: Max | B64: =MAX(D66:J66) -> 1.011826544 | C64: Volatilita | D64: 181.3 | E64: 68 | F64: 86.1 | G64: 152.2 | H64: 61.5 | I64: 71.4 | J64: 71.5 | L64: Max | M64: =MAX(O66:U66) -> 1.350762527 | N64: Volatilita | O64: 108.8 | P64: 116.4 | Q64: 86.1 | R64: 76.6 | S64: 93.3 | T64: 45.9 | U64: 127
C65: Dnes | D65: =(D59-D62)*10000 -> 178 | E65: =(E59-E62)*100 -> 63 | F65: =(F59-F62)*10000 -> 42 | G65: =(G59-G62)*10000 -> 154 | H65: =(H59-H62)*10000 -> 31 | I65: =(I59-I62)*10000 -> 72 | J65: =(J59-J62)*10000 -> 61 | N65: Dnes | O65: =(O59-O62)*10000 -> 54 | P65: =(P59-P62)*10000 -> 113 | Q65: =(Q59-Q62)*10000 -> 42 | R65: =(R59-R62)*10000 -> 29 | S65: =(S59-S62)*10000 -> 70 | T65: =(T59-T62)*100 -> 62 | U65: =(U59-U62)*10000 -> 110
D66: =1/(D64/D65) -> 0.9817981247 | E66: 0.9264705882 | F66: 0.487804878 | G66: 1.011826544 | H66: 0.5040650407 | I66: 1.008403361 | J66: 0.8531468531 | O66: =1/(O64/O65) -> 0.4963235294 | P66: 0.970790378 | Q66: 0.487804878 | R66: 0.3785900783 | S66: 0.7502679528 | T66: 1.350762527 | U66: 0.8661417323

Sheet Poriadok
C2: aud | D2: CADAUD | E2: JPYAUD | F2: NZDAUD | G2: USDAUD | H2: EURAUD | I2: GBPAUD | J2: CHFAUD | N2: cad | O2: AUDCAD | P2: CHFCAD | Q2: JPYCAD | R2: EURCAD | S2: GBPCAD | T2: USDCAD | U2: NZDCAD
D3: =1.0038 -> 1.0038 | E3: =1.2534 -> 1.2534 | F3: =0.8029 -> 0.8029 | G3: =0.9838 -> 0.9838 | H3: 1.2732 | I3: 1.58453 | J3: =1.0515 -> 1.0515 | O3: 1.0153 | P3: =1.0331 -> 1.0331 | Q3: =1.249 -> 1.249 | R3: 1.2471 | S3: 1.56247 | T3: 0.9723 | U3: 0.7902
C5: eur | D5: AUDEUR | E5: CADEUR | F5: CHFEUR | G5: GBPEUR | H5: JPYEUR | I5: USDEUR | J5: NZDEUR | N5: gbp | O5: EURGBP | P5: CADGBP | Q5: AUDGBP | R5: NZDGBP | S5: CHFGBP | T5: JPYGBP | U5: USDGBP
D6: =0.8516 -> 0.8516 | E6: =0.817 -> 0.817 | F6: =0.8327 -> 0.8327 | G6: =1.2716 -> 1.2716 | H6: =1.0347 -> 1.0347 | I6: =0.8108 -> 0.8108 | J6: =0.6553 -> 0.6553 | O6: 0.8022 | P6: =0.6261 -> 0.6261 | Q6: =0.63 -> 0.63 | R6: =0.4895 -> 0.4895 | S6: =0.6614 -> 0.6614 | T6: =0.8329 -> 0.8329 | U6: =0.6506 -> 0.6506
C8: chf | D8: CADCHF | E8: JPYCHF | F8: EURCHF | G8: GBPCHF | H8: USDCHF | I8: AUDCHF | J8: NZDCHF | N8: jpy | O8: AUDJPY | P8: CADJPY | Q8: CHFJPY | R8: EURJPY | S8: GBPJPY | T8: NZDJPY | U8: USDJPY
D9: 0.974 | E9: =1.2812 -> 1.2812 | F9: 1.201 | G9: 1.5255 | H9: 0.9768 | I9: 1.0281 | J9: 0.7805 | O9: 0.8694 | P9: 0.832 | Q9: 0.882 | R9: 1.06529 | S9: 1.3239 | T9: 0.686 | U9: 0.8236
C11: nzd | D11: GBPNZD | E11: JPYNZD | F11: USDNZD | G11: EURNZD | H11: CADNZD | I11: CHFNZD | J11: AUDNZD | N11: usd | O11: AUDUSD | P11: GBPUSD | Q11: NZDUSD | R11: CADUSD | S11: CHFUSD | T11: JPYUSD | U11: EURUSD
D12: 1.99121 | E12: =1.6017 -> 1.6017 | F12: =1.254 -> 1.254 | G12: 1.5731 | H12: =1.2782 -> 1.2782 | I12: =1.3156 -> 1.3156 | J12: 1.2835 | O12: 1.0576 | P12: 1.6224 | Q12: 0.8342 | R12: =1.036 -> 1.036 | S12: =1.078 -> 1.078 | T12: =1.2881 -> 1.2881 | U12: 1.3139
A16: Aktuálny kurz | B16: AUD | D16: CADAUD | E16: JPYAUD | F16: NZDAUD | G16: USDAUD | H16: EURAUD | I16: GBPAUD | J16: CHFAUD | K16: pv | M16: CAD | O16: AUDCAD | P16: CHFCAD | Q16: JPYCAD | R16: EURCAD | S16: GBPCAD | T16: USDCAD | U16: NZDCAD | V16: pv
C17: Ask | D17: =1/[2]!AUDCAD -> 0.9646922632 | E17: =1/[2]!AUDJPY*100 -> 1.094091904 | F17: =1/[2]!AUDNZD -> 0.7907013521 | G17: =1/[2]!AUDUSD -> 0.9504799924 | H17: =[2]!EURAUD -> 1.2475 | I17: =[2]!GBPAUD -> 1.5383 | J17: =1/[2]!AUDCHF -> 1.030715316 | K17: =(0.0001/G19)*10000 -> 1.051949979 | N17: Ask | O17: =[2]!AUDCAD -> 1.0366 | P17: =1/[2]!CADCHF -> 1.068261938 | Q17: =1/[2]!CADJPY*100 -> 1.133016089 | R17: =[2]!EURCAD -> 1.2925 | S17: =[2]!GBPCAD -> 1.5934 | T17: =[2]!USDCAD -> 0.9853 | U17: =[2]!NZDCAD -> 0.8209 | V17: =(0.0001/T19)*10000 -> 1.015073847
C18: Bid | D18: =1/[3]!AUDCAD -> 0.965530559 | E18: =1/[3]!AUDJPY*100 -> 1.094570928 | F18: =1/[3]!AUDNZD -> 0.7925186242 | G18: =1/[3]!AUDUSD -> 0.9507510934 | H18: =[3]!EURAUD -> 1.2464 | I18: =[3]!GBPAUD -> 1.5364 | J18: =1/[3]!AUDCHF -> 1.032204789 | N18: Bid | O18: =[3]!AUDCAD -> 1.0357 | P18: =1/[3]!CADCHF -> 1.069061364 | Q18: =1/[3]!CADJPY*100 -> 1.134172621 | R18: =[3]!EURCAD -> 1.2916 | S18: =[3]!GBPCAD -> 1.592 | T18: =[3]!USDCAD -> 0.985 | U18: =[3]!NZDCAD -> 0.8195
C19: Priemer | D19: =(D17+D18)/2 -> 0.9651114111 | E19: =(E17+E18)/2 -> 1.094331416 | F19: 0.7916099881 | G19: 0.9506155429 | H19: 1.24695 | I19: 1.53735 | J19: 1.031460053 | N19: Priemer | O19: =(O17+O18)/2 -> 1.03615 | P19: =(P17+P18)/2 -> 1.068661651 | Q19: 1.133594355 | R19: 1.29205 | S19: 1.5927 | T19: 0.98515 | U19: 0.8202
C20: spread | D20: =ABS(D17-D18)*10000 -> 8.382958741 | E20: =ABS(E17-E18)*10000 -> 4.790244762 | F20: 18.17272088 | G20: 2.711009676 | H20: 11 | I20: 19 | J20: 14.89473001 | K20: =SUM(D20:J20) -> 78.95166407 | N20: spread | O20: =ABS(O17-O18)*10000 -> 9 | P20: =ABS(P17-P18)*10000 -> 7.994262951 | Q20: 11.56532244 | R20: 9 | S20: 14 | T20: 3 | U20: 14 | V20: =SUM(O20:U20) -> 68.5595854
B22: EUR | D22: AUDEUR | E22: CADEUR | F22: CHFEUR | G22: GBPEUR | H22: JPYEUR | I22: USDEUR | J22: NZDEUR | K22: pv | M22: GBP | O22: EURGBP | P22: CADGBP | Q22: AUDGBP | R22: NZDGBP | S22: CHFGBP | T22: JPYGBP | U22: USDGBP | V22: pv
C23: Ask | D23: =1/[2]!EURAUD -> 0.8016032064 | E23: =1/[2]!EURCAD -> 0.7736943907 | F23: =1/[2]!EURCHF -> 0.8271298594 | G23: =1/[2]!EURGBP -> 1.232589671 | H23: =1/[2]!EURJPY*100 -> 0.8774238835 | I23: =1/[2]!EURUSD -> 0.7623113279 | J23: =1/[2]!EURNZD -> 0.6343970056 | K23: =(0.0001/I25)*10000 -> 1.311649983 | N23: Ask | O23: =[2]!EURGBP -> 0.8113 | P23: =1/[2]!GBPCAD -> 0.6275888038 | Q23: =1/[2]!GBPAUD -> 0.6500682572 | R23: =1/[2]!GBPNZD -> 0.5145091583 | S23: =1/[2]!GBPCHF -> 0.6707807888 | T23: =1/[2]!GBPJPY*100 -> 0.7116424708 | U23: =1/[2]!GBPUSD -> 0.6183909468 | V23: =(0.0001/U25)*10000 -> 1.616949986
C24: Bid | D24: =1/[3]!EURAUD -> 0.8023106547 | E24: =1/[3]!EURCAD -> 0.7742335088 | F24: =1/[3]!EURCHF -> 0.8274036075 | G24: =1/[3]!EURGBP -> 1.233045623 | H24: =1/[3]!EURJPY*100 -> 0.8776549061 | I24: =1/[3]!EURUSD -> 0.7624857034 | J24: =1/[3]!EURNZD -> 0.6353643815 | N24: Bid | O24: =[3]!EURGBP -> 0.811 | P24: =1/[3]!GBPCAD -> 0.6281407035 | Q24: =1/[3]!GBPAUD -> 0.6508721687 | R24: =1/[3]!GBPNZD -> 0.5154107824 | S24: =1/[3]!GBPCHF -> 0.6710958996 | T24: =1/[3]!GBPJPY*100 -> 0.711997152 | U24: =1/[3]!GBPUSD -> 0.6185056903
C25: Priemer | D25: =(D23+D24)/2 -> 0.8019569305 | E25: =(E23+E24)/2 -> 0.7739639498 | F25: 0.8272667334 | G25: 1.232817647 | H25: 0.8775393948 | I25: 0.7623985157 | J25: 0.6348806936 | N25: Priemer | O25: =(O23+O24)/2 -> 0.81115 | P25: =(P23+P24)/2 -> 0.6278647537 | Q25: 0.6504702129 | R25: 0.5149599703 | S25: 0.6709383442 | T25: 0.7118198114 | U25: 0.6184483185
C26: spread | D26: =ABS(D23-D24)*10000 -> 7.074482727 | E26: =ABS(E23-E24)*10000 -> 5.391181106 | F26: 2.737480918 | G26: 4.559517895 | H26: 2.310226128 | I26: 1.743754467 | J26: 9.673758266 | K26: =SUM(D26:J26) -> 33.49040151 | N26: spread | O26: =ABS(O23-O24)*10000 -> 3 | P26: =ABS(P23-P24)*10000 -> 5.518997018 | Q26: 8.039115391 | R26: 9.016241306 | S26: 3.151107658 | T26: 3.546811887 | U26: 1.147434958 | V26: =SUM(O26:U26) -> 33.41970822
B28: CHF | D28: CADCHF | E28: JPYCHF | F28: EURCHF | G28: GBPCHF | H28: USDCHF | I28: AUDCHF | J28: NZDCHF | K28: pv | M28: JPY | O28: AUDJPY | P28: CADJPY | Q28: CHFJPY | R28: EURJPY | S28: GBPJPY | T28: NZDJPY | U28: USDJPY | V28: pv
C29: Ask | D29: =[2]!CADCHF -> 0.9361 | E29: =1/[2]!CHFJPY*100 -> 1.060557853 | F29: =[2]!EURCHF -> 1.209 | G29: =[2]!GBPCHF -> 1.4908 | H29: =[2]!USDCHF -> 0.9219 | I29: =[2]!AUDCHF -> 0.9702 | J29: =[2]!NZDCHF -> 0.7685 | K29: =(0.0001/H31)*10000 -> 1.084892867 | N29: Ask | O29: =[2]!AUDJPY/100 -> 0.914 | P29: =[2]!CADJPY/100 -> 0.8826 | Q29: =[2]!CHFJPY/100 -> 0.9429 | R29: =[2]!EURJPY/100 -> 1.1397 | S29: =[2]!GBPJPY/100 -> 1.4052 | T29: =[2]!NZDJPY/100 -> 0.7241 | U29: =[2]!USDJPY/100 -> 0.8691 | V29: =(0.0001/U31)*10000 -> 1.150814201
C30: Bid | D30: =[3]!CADCHF -> 0.9354 | E30: =1/[3]!CHFJPY*100 -> 1.061120543 | F30: =[3]!EURCHF -> 1.2086 | G30: =[3]!GBPCHF -> 1.4901 | H30: =[3]!USDCHF -> 0.9216 | I30: =[3]!AUDCHF -> 0.9688 | J30: =[3]!NZDCHF -> 0.7666 | N30: Bid | O30: =[3]!AUDJPY/100 -> 0.9136 | P30: =[3]!CADJPY/100 -> 0.8817 | Q30: =[3]!CHFJPY/100 -> 0.9424 | R30: =[3]!EURJPY/100 -> 1.1394 | S30: =[3]!GBPJPY/100 -> 1.4045 | T30: =[3]!NZDJPY/100 -> 0.7227 | U30: =[3]!USDJPY/100 -> 0.8688
C31: Priemer | D31: =(D29+D30)/2 -> 0.93575 | E31: =(E29+E30)/2 -> 1.060839198 | F31: 1.2088 | G31: 1.49045 | H31: 0.92175 | I31: 0.9695 | J31: 0.76755 | N31: Priemer | O31: =(O29+O30)/2 -> 0.9138 | P31: =(P29+P30)/2 -> 0.88215 | Q31: 0.94265 | R31: 1.13955 | S31: 1.40485 | T31: 0.7234 | U31: 0.86895
C32: spread | D32: =ABS(D29-D30)*10000 -> 7 | E32: =ABS(E29-E30)*10000 -> 5.626898628 | F32: 4 | G32: 7 | H32: 3 | I32: 14 | J32: 19 | K32: =SUM(D32:J32) -> 59.62689863 | N32: spread | O32: =ABS(O29-O30)*10000 -> 4 | P32: =ABS(P29-P30)*10000 -> 9 | Q32: 5 | R32: 3 | S32: 7 | T32: 14 | U32: 3 | V32: =SUM(O32:U32) -> 45
C34: NZD | D34: GBPNZD | E34: JPYNZD | F34: USDNZD | G34: EURNZD | H34: CADNZD | I34: CHFNZD | J34: AUDNZD | K34: pv | M34: USD | O34: AUDUSD | P34: GBPUSD | Q34: NZDUSD | R34: CADUSD | S34: CHFUSD | T34: JPYUSD | U34: EURUSD | V34: pv
C35: Ask | D35: =[2]!GBPNZD -> 1.9436 | E35: =1/[2]!NZDJPY*100 -> 1.38102472 | F35: =1/[2]!NZDUSD -> 1.200768492 | G35: =[2]!EURNZD -> 1.5763 | H35: =1/[2]!NZDCAD -> 1.218175174 | I35: =1/[2]!NZDCHF -> 1.301236174 | J35: =[2]!AUDNZD -> 1.2647 | K35: =(0.0001/F37)*10000 -> 0.832649973 | N35: Ask | O35: =[2]!AUDUSD -> 1.0521 | P35: =[2]!GBPUSD -> 1.6171 | Q35: =[2]!NZDUSD -> 0.8328 | R35: =1/[2]!USDCAD -> 1.014919314 | S35: =1/[2]!USDCHF -> 1.084716347 | T35: =1/[2]!USDJPY*100 -> 1.150615579 | U35: =[2]!EURUSD -> 1.3118 | V35: 1
C36: Bid | D36: =[3]!GBPNZD -> 1.9402 | E36: =1/[3]!NZDJPY*100 -> 1.383700014 | F36: =1/[3]!NZDUSD -> 1.201201201 | G36: =[3]!EURNZD -> 1.5739 | H36: =1/[3]!NZDCAD -> 1.220256254 | I36: =1/[3]!NZDCHF -> 1.304461258 | J36: =[3]!AUDNZD -> 1.2618 | N36: Bid | O36: =[3]!AUDUSD -> 1.0518 | P36: =[3]!GBPUSD -> 1.6168 | Q36: =[3]!NZDUSD -> 0.8325 | R36: =1/[3]!USDCAD -> 1.015228426 | S36: =1/[3]!USDCHF -> 1.085069444 | T36: =1/[3]!USDJPY*100 -> 1.151012891 | U36: =[3]!EURUSD -> 1.3115
C37: Priemer | D37: =(D35+D36)/2 -> 1.9419 | E37: =(E35+E36)/2 -> 1.382362367 | F37: =(F35+F36)/2 -> 1.200984847 | G37: 1.5751 | H37: 1.219215714 | I37: 1.302848716 | J37: 1.26325 | N37: Priemer | O37: =(O35+O36)/2 -> 1.05195 | P37: =(P35+P36)/2 -> 1.61695 | Q37: 0.83265 | R37: 1.01507387 | S37: 1.084892896 | T37: 1.150814235 | U37: 1.31165
C38: spread | D38: =ABS(D35-D36)*10000 -> 34 | E38: 26.75293495 | F38: 4.327093664 | G38: 24 | H38: 20.81080223 | I38: 32.25083135 | J38: 29 | K38: =SUM(D38:J38) -> 171.1416622 | N38: spread | O38: =ABS(O35-O36)*10000 -> 3 | P38: 3 | Q38: 3 | R38: 3.091124814 | S38: 3.530977691 | T38: 3.973120094 | U38: 3 | V38: =SUM(O38:U38) -> 22.5952226
A41: Rozdiely | C41: aud | D41: CADAUD | E41: JPYAUD | F41: NZDAUD | G41: USDAUD | H41: EURAUD | I41: GBPAUD | J41: CHFAUD | N41: cad | O41: AUDCAD | P41: CHFCAD | Q41: JPYCAD | R41: EURCAD | S41: GBPCAD | T41: USDCAD | U41: NZDCAD
C42: =(D42+E42+F42+G42+H42+I42+J42) -> 3357.01589 | D42: =((D3-D19))*10000 -> 386.8858889 | E42: =((E3-E19))*10000 -> 1590.68584 | F42: =((F3-F19))*10000 -> 112.9001186 | G42: =((G3-G19))*10000 -> 331.8445712 | H42: =((H3-H19))*10000 -> 262.5 | I42: =((I3-I19))*10000 -> 471.8 | J42: =((J3-J19))*10000 -> 200.3994707 | N42: =O42+P42+Q42+R42+S42+T42+U42 -> -590.3600593 | O42: =(O3-O19)*10000 -> -208.5 | P42: =(P3-P19)*10000 -> -355.6165097 | Q42: =(Q3-Q19)*10000 -> 1154.05645 | R42: =(R3-R19)*10000 -> -449.5 | S42: =(S3-S19)*10000 -> -302.3 | T42: =(T3-T19)*10000 -> -128.5 | U42: =(U3-U19)*10000 -> -300
C44: eur | D44: AUDEUR | E44: CADEUR | F44: CHFEUR | G44: GBPEUR | H44: JPYEUR | I44: USDEUR | J44: NZDEUR | N44: gbp | O44: EURGBP | P44: CADGBP | Q44: AUDGBP | R44: NZDGBP | S44: CHFGBP | T44: JPYGBP | U44: USDGBP
C45: =D45+E45+F45+G45+H45+I45+J45 -> 3628.761354 | D45: =((D6-D25))*10000 -> 496.4306945 | E45: =((E6-E25))*10000 -> 430.3605023 | F45: =((F6-F25))*10000 -> 54.33266566 | G45: 387.8235321 | H45: 1571.606052 | I45: 484.0148433 | J45: 204.1930644 | N45: =O45+P45+Q45+R45+S45+T45+U45 -> 870.4858893 | O45: =(O6-O25)*10000 -> -89.5 | P45: =(P6-P25)*10000 -> -17.64753667 | Q45: -204.7021294 | R45: -254.5997033 | S45: -95.38344221 | T45: 1210.801886 | U45: 321.516815
C47: chf | D47: CADCHF | E47: JPYCHF | F47: EURCHF | G47: GBPCHF | H47: USDCHF | I47: AUDCHF | J47: NZDCHF | N47: jpy | O47: AUDJPY | P47: CADJPY | Q47: CHFJPY | R47: EURJPY | S47: GBPJPY | T47: NZDJPY | U47: USDJPY
C48: =D48+E48+F48+G48+H48+I48+J48 -> 4124.608016 | D48: =(D9-D31)*10000 -> 382.5 | E48: =(E9-E31)*10000 -> 2203.608016 | F48: -78 | G48: 350.5 | H48: 550.5 | I48: 586 | J48: 129.5 | N48: =O48+P48+Q48+R48+S48+T48+U48 -> -3931.6 | O48: =(O9-O31)*10000 -> -444 | P48: =(P9-P31)*10000 -> -501.5 | Q48: -606.5 | R48: -742.6 | S48: -809.5 | T48: -374 | U48: -453.5 | W48: =-1 -> -1
W49: 1
C50: nzd | D50: GBPNZD | E50: JPYNZD | F50: USDNZD | G50: EURNZD | H50: CADNZD | I50: CHFNZD | J50: AUDNZD | N50: usd | O50: AUDUSD | P50: GBPUSD | Q50: NZDUSD | R50: CADUSD | S50: CHFUSD | T50: JPYUSD | U50: EURUSD
C51: =D51+E51+F51+G51+H51+I51+J51 -> 4116.483568 | D51: =(D12-D37)*10000 -> 493.1 | E51: 2193.376329 | F51: 530.1515348 | G51: -20 | H51: 589.842863 | I51: 127.5128407 | J51: 202.5 | N51: =O51+P51+Q51+R51+S51+T51+U51 -> 1662.189989 | O51: =(O12-O37)*10000 -> 56.5 | P51: 54.5 | Q51: 15.5 | R51: 209.2612984 | S51: -68.9289556 | T51: 1372.857647 | U51: 22.5
V56: =SUM(#REF!) -> 
